[Event "Late-Titled-Tuesday-Blitz-January-16-2024"]
[Site "Chess.com"]
[Date "2024.01.16"]
[Round "6"]
[White "mr_gustavo"]
[Black "chesspreceptor"]
[Result "1-0"]
[WhiteElo "2748"]
[BlackElo "2575"]
[TimeControl "180+1"]
[EndTime "15:03:10 PST"]
[Termination "mr_gustavo won by resignation"]

1. d4 {[%clk 0:03:00.9]} 1... d5 {[%clk 0:02:59.7]} 2. Nf3 {[%clk 0:03:00.5]}
2... Nf6 {[%clk 0:02:59.4]} 3. Bf4 {[%clk 0:03:00.9]} 3... c5 {[%clk 0:02:57.5]}
4. e3 {[%clk 0:03:01.3]} 4... Nc6 {[%clk 0:02:57.8]} 5. Bb5 {[%clk 0:02:57.4]}
5... Bg4 {[%clk 0:02:43.1]} 6. O-O {[%clk 0:02:50.3]} 6... e6 {[%clk 0:02:42.1]}
7. c3 {[%clk 0:02:45.4]} 7... Bd6 {[%clk 0:02:41]} 8. Bxd6 {[%clk 0:02:41.5]}
8... Qxd6 {[%clk 0:02:41.9]} 9. Be2 {[%clk 0:02:37.4]} 9... O-O {[%clk
0:02:40.6]} 10. Nbd2 {[%clk 0:02:34.7]} 10... e5 {[%clk 0:02:36]} 11. dxe5
{[%clk 0:02:30.3]} 11... Nxe5 {[%clk 0:02:35.3]} 12. Nxe5 {[%clk 0:02:28.6]}
12... Bxe2 {[%clk 0:02:35.9]} 13. Qxe2 {[%clk 0:02:17.1]} 13... Qxe5 {[%clk
0:02:35.4]} 14. h3 {[%clk 0:02:15.1]} 14... Rfe8 {[%clk 0:02:32]} 15. Nf3 {[%clk
0:02:11.1]} 15... Qh5 {[%clk 0:02:27.3]} 16. Rad1 {[%clk 0:02:10.5]} 16... a6
{[%clk 0:02:22.5]} 17. Qc2 {[%clk 0:02:10]} 17... Rad8 {[%clk 0:02:20.5]} 18. a4
{[%clk 0:02:07.6]} 18... Ne4 {[%clk 0:02:07.1]} 19. c4 {[%clk 0:02:06.2]} 19...
Rd6 {[%clk 0:01:59.7]} 20. Rxd5 {[%clk 0:02:00.7]} 20... Rxd5 {[%clk 0:01:58.9]}
21. cxd5 {[%clk 0:02:01.6]} 21... Qxd5 {[%clk 0:01:58.7]} 22. Rd1 {[%clk
0:02:02]} 22... Qc6 {[%clk 0:01:59]} 23. a5 {[%clk 0:01:55.9]} 23... g6 {[%clk
0:01:57.8]} 24. Qc4 {[%clk 0:01:54.3]} 24... Nd6 {[%clk 0:01:42.5]} 25. Qd5
{[%clk 0:01:52.7]} 25... Ne4 {[%clk 0:01:31.9]} 26. Qc4 {[%clk 0:01:27.3]} 26...
b5 {[%clk 0:01:25.5]} 27. axb6 {[%clk 0:01:26.6]} 27... Qxb6 {[%clk 0:01:25.6]}
28. Rd7 {[%clk 0:01:22.1]} 28... Qe6 {[%clk 0:01:12.8]} 29. Qd3 {[%clk 0:01:02]}
29... c4 {[%clk 0:01:08.7]} 30. Qd1 {[%clk 0:00:59.9]} 30... Rb8 {[%clk
0:01:01.7]} 31. Rd8+ {[%clk 0:00:58.6]} 31... Rxd8 {[%clk 0:01:01.6]} 32. Qxd8+
{[%clk 0:00:59.5]} 32... Kg7 {[%clk 0:01:01.3]} 33. Qd4+ {[%clk 0:01:00.1]}
33... f6 {[%clk 0:00:59.9]} 34. Qa7+ {[%clk 0:00:56.3]} 34... Kh6 {[%clk
0:00:59.9]} 35. Nd4 {[%clk 0:00:56.1]} 35... Qd6 {[%clk 0:00:58.7]} 36. Qb7
{[%clk 0:00:52.2]} 36... Nc5 {[%clk 0:00:53.4]} 37. Qf7 {[%clk 0:00:52.7]} 37...
Nd3 {[%clk 0:00:47.6]} 38. Ne6 {[%clk 0:00:52.3]} 1-0

[Event "Late-Titled-Tuesday-Blitz-January-16-2024"]
[Site "Chess.com"]
[Date "2024.01.16"]
[Round "6"]
[White "Verony64"]
[Black "wanyaland"]
[Result "0-1"]
[WhiteElo "2191"]
[BlackElo "2474"]
[TimeControl "180+1"]
[EndTime "15:03:10 PST"]
[Termination "wanyaland won by resignation"]

1. e4 {[%clk 0:02:58.3]} 1... c5 {[%clk 0:02:59.1]} 2. Nc3 {[%clk 0:02:57.2]}
2... Nc6 {[%clk 0:02:57.5]} 3. d3 {[%clk 0:02:57.6]} 3... g6 {[%clk 0:02:57.6]}
4. g3 {[%clk 0:02:57.9]} 4... Bg7 {[%clk 0:02:57.8]} 5. Bg2 {[%clk 0:02:53.8]}
5... Nf6 {[%clk 0:02:57.2]} 6. f4 {[%clk 0:02:53.5]} 6... d6 {[%clk 0:02:56.8]}
7. h3 {[%clk 0:02:53]} 7... O-O {[%clk 0:02:56.8]} 8. Nf3 {[%clk 0:02:53.3]}
8... Rb8 {[%clk 0:02:56.2]} 9. O-O {[%clk 0:02:53.4]} 9... b5 {[%clk 0:02:55.9]}
10. Ne2 {[%clk 0:02:51.6]} 10... b4 {[%clk 0:02:54.6]} 11. g4 {[%clk 0:02:50]}
11... a5 {[%clk 0:02:54.1]} 12. Be3 {[%clk 0:02:45.4]} 12... Nd7 {[%clk
0:02:53]} 13. Rb1 {[%clk 0:02:44.8]} 13... a4 {[%clk 0:02:52.2]} 14. c3 {[%clk
0:02:44.1]} 14... Ba6 {[%clk 0:02:50.4]} 15. Qd2 {[%clk 0:02:40.9]} 15... a3
{[%clk 0:02:46.1]} 16. bxa3 {[%clk 0:02:38.9]} 16... bxc3 {[%clk 0:02:46]} 17.
Nxc3 {[%clk 0:02:37.6]} 17... Qa5 {[%clk 0:02:45.1]} 18. Nd5 {[%clk 0:02:28.6]}
18... Qxd2 {[%clk 0:02:41.7]} 19. Nxd2 {[%clk 0:02:27.1]} 19... Bxd3 {[%clk
0:02:41.2]} 20. Rxb8 {[%clk 0:02:27]} 20... Rxb8 {[%clk 0:02:41]} 21. Rf2 {[%clk
0:02:10.2]} 21... e6 {[%clk 0:02:39.6]} 22. e5 {[%clk 0:01:52.1]} 22... exd5
{[%clk 0:02:31.1]} 23. Bxd5 {[%clk 0:01:49.9]} 23... Ne7 {[%clk 0:02:27.6]} 24.
Bb3 {[%clk 0:01:26]} 24... dxe5 {[%clk 0:02:22.6]} 25. fxe5 {[%clk 0:01:21.9]}
25... Nxe5 {[%clk 0:02:22.4]} 26. Bxc5 {[%clk 0:01:20.8]} 26... N7c6 {[%clk
0:02:16.9]} 27. Nf3 {[%clk 0:00:55.6]} 27... Nxf3+ {[%clk 0:02:06]} 28. Rxf3
{[%clk 0:00:55.8]} 28... Ne5 {[%clk 0:02:05.5]} 29. Bxf7+ {[%clk 0:00:49.5]}
29... Kh8 {[%clk 0:01:57.8]} 30. Re3 {[%clk 0:00:48.2]} 30... Rc8 {[%clk
0:01:49.1]} 31. Bb4 {[%clk 0:00:34.8]} 31... Ba6 {[%clk 0:01:39.2]} 32. Bb3
{[%clk 0:00:31.5]} 32... Bb7 {[%clk 0:01:38.1]} 33. Kh2 {[%clk 0:00:24.8]} 33...
h5 {[%clk 0:01:30.2]} 34. gxh5 {[%clk 0:00:21]} 34... gxh5 {[%clk 0:01:30.6]}
35. Kg3 {[%clk 0:00:18.1]} 35... Ng6 {[%clk 0:01:29.7]} 36. Be6 {[%clk
0:00:15.9]} 36... h4+ {[%clk 0:01:29.1]} 37. Kg4 {[%clk 0:00:15.3]} 37... Re8
{[%clk 0:01:26.8]} 38. Bc5 {[%clk 0:00:13.9]} 38... Ne5+ {[%clk 0:01:22.5]} 39.
Kf5 {[%clk 0:00:13.7]} 39... Nf3 {[%clk 0:01:17.1]} 40. Re4 {[%clk 0:00:12.6]}
40... Bxe4+ {[%clk 0:01:15.5]} 41. Kxe4 {[%clk 0:00:10.2]} 41... Ng5+ {[%clk
0:01:15.6]} 0-1

[Event "Late-Titled-Tuesday-Blitz-January-16-2024"]
[Site "Chess.com"]
[Date "2024.01.16"]
[Round "6"]
[White "jup1978"]
[Black "brm72"]
[Result "0-1"]
[WhiteElo "2479"]
[BlackElo "2697"]
[TimeControl "180+1"]
[EndTime "15:03:11 PST"]
[Termination "brm72 won by checkmate"]

1. d4 {[%clk 0:02:54.8]} 1... Nf6 {[%clk 0:02:51.6]} 2. Nf3 {[%clk 0:02:54.9]}
2... e6 {[%clk 0:02:51.8]} 3. c4 {[%clk 0:02:54.2]} 3... c5 {[%clk 0:02:51.6]}
4. d5 {[%clk 0:02:53.6]} 4... exd5 {[%clk 0:02:52.4]} 5. cxd5 {[%clk 0:02:54.5]}
5... g6 {[%clk 0:02:52.4]} 6. Nc3 {[%clk 0:02:55]} 6... d6 {[%clk 0:02:52.8]} 7.
h3 {[%clk 0:02:55.7]} 7... Bg7 {[%clk 0:02:53]} 8. Bf4 {[%clk 0:02:56.3]} 8...
a6 {[%clk 0:02:51]} 9. a4 {[%clk 0:02:53.9]} 9... O-O {[%clk 0:02:51.1]} 10. e3
{[%clk 0:02:54.5]} 10... Re8 {[%clk 0:02:49.9]} 11. Be2 {[%clk 0:02:54.4]} 11...
Bf5 {[%clk 0:02:47.7]} 12. O-O {[%clk 0:02:52.8]} 12... Ne4 {[%clk 0:02:46.8]}
13. Nxe4 {[%clk 0:02:33.4]} 13... Bxe4 {[%clk 0:02:47.7]} 14. Qb3 {[%clk
0:02:32.1]} 14... Bxf3 {[%clk 0:02:42]} 15. Bxf3 {[%clk 0:02:31]} 15... Qc7
{[%clk 0:02:42.3]} 16. Rfc1 {[%clk 0:02:15.5]} 16... Nd7 {[%clk 0:02:41]} 17. a5
{[%clk 0:02:14.5]} 17... Rab8 {[%clk 0:02:34.2]} 18. Rc2 {[%clk 0:01:58.2]}
18... b5 {[%clk 0:02:33.9]} 19. axb6 {[%clk 0:01:58.3]} 19... Rxb6 {[%clk
0:02:33.7]} 20. Qc4 {[%clk 0:01:54.3]} 20... Qb7 {[%clk 0:02:24.4]} 21. Ra2
{[%clk 0:01:49.1]} 21... Ne5 {[%clk 0:02:11.5]} 22. Bxe5 {[%clk 0:01:48.5]}
22... Bxe5 {[%clk 0:02:11.2]} 23. Be2 {[%clk 0:01:36.1]} 23... Ra8 {[%clk
0:02:10.6]} 24. g3 {[%clk 0:01:30.9]} 24... a5 {[%clk 0:02:08.9]} 25. f4 {[%clk
0:01:09.2]} 25... Bxb2 {[%clk 0:02:06.8]} 26. e4 {[%clk 0:01:03.2]} 26... Rb4
{[%clk 0:02:04.2]} 27. Qd3 {[%clk 0:00:59.8]} 27... a4 {[%clk 0:02:02.5]} 28.
Bf3 {[%clk 0:00:58.9]} 28... a3 {[%clk 0:01:57.3]} 29. Qe2 {[%clk 0:00:57.6]}
29... Bd4+ {[%clk 0:01:54.3]} 30. Kg2 {[%clk 0:00:57.9]} 30... Qe7 {[%clk
0:01:39.4]} 31. Qd3 {[%clk 0:00:54.5]} 31... Rb2 {[%clk 0:01:35]} 32. Rcxb2
{[%clk 0:00:39.1]} 32... Bxb2 {[%clk 0:01:33.9]} 33. e5 {[%clk 0:00:39.6]} 33...
Rb8 {[%clk 0:01:31.7]} 34. e6 {[%clk 0:00:35.4]} 34... Rb4 {[%clk 0:01:24.1]}
35. f5 {[%clk 0:00:35]} 35... Rd4 {[%clk 0:01:21.4]} 36. Qc2 {[%clk 0:00:32.5]}
36... Kg7 {[%clk 0:01:17.4]} 37. fxg6 {[%clk 0:00:25.7]} 37... hxg6 {[%clk
0:01:18.3]} 38. exf7 {[%clk 0:00:25]} 38... Qxf7 {[%clk 0:01:17.2]} 39. h4
{[%clk 0:00:20]} 39... Qf6 {[%clk 0:01:15.6]} 40. Qb3 {[%clk 0:00:16.1]} 40...
Rd2+ {[%clk 0:01:13.3]} 41. Kh3 {[%clk 0:00:15.9]} 41... Qf5+ {[%clk 0:01:10.2]}
42. Bg4 {[%clk 0:00:12.1]} 42... Qe4 {[%clk 0:01:10.1]} 43. Qb7+ {[%clk
0:00:04.4]} 43... Kh6 {[%clk 0:01:10.1]} 44. Be6 {[%clk 0:00:04.5]} 44... Qg2+
{[%clk 0:01:09.4]} 45. Kg4 {[%clk 0:00:04.7]} 45... Rd4# {[%clk 0:01:10]} 0-1

[Event "Late-Titled-Tuesday-Blitz-January-16-2024"]
[Site "Chess.com"]
[Date "2024.01.16"]
[Round "6"]
[White "SilencerBaba"]
[Black "protectiago"]
[Result "1-0"]
[WhiteElo "2314"]
[BlackElo "2041"]
[TimeControl "180+1"]
[EndTime "15:03:12 PST"]
[Termination "SilencerBaba won on time"]

1. e4 {[%clk 0:03:00.9]} 1... e5 {[%clk 0:02:58.7]} 2. Nf3 {[%clk 0:03:00]} 2...
Nc6 {[%clk 0:02:53.9]} 3. Bc4 {[%clk 0:03:00.4]} 3... Bc5 {[%clk 0:02:53.4]} 4.
d3 {[%clk 0:02:59.3]} 4... Nf6 {[%clk 0:02:47.5]} 5. c3 {[%clk 0:02:55.5]} 5...
d6 {[%clk 0:02:46.9]} 6. Be3 {[%clk 0:02:54]} 6... Bxe3 {[%clk 0:02:45.6]} 7.
fxe3 {[%clk 0:02:54.9]} 7... O-O {[%clk 0:02:44]} 8. O-O {[%clk 0:02:53.7]} 8...
d5 {[%clk 0:02:03.2]} 9. exd5 {[%clk 0:02:53.3]} 9... Nxd5 {[%clk 0:01:57.3]}
10. Qe2 {[%clk 0:02:53.7]} 10... Be6 {[%clk 0:01:48.9]} 11. Nbd2 {[%clk
0:02:52.8]} 11... Qd7 {[%clk 0:01:42.3]} 12. Ne4 {[%clk 0:02:51.8]} 12... b6
{[%clk 0:01:35.2]} 13. Neg5 {[%clk 0:02:30.7]} 13... Bg4 {[%clk 0:01:29.2]} 14.
h3 {[%clk 0:02:29.6]} 14... Bh5 {[%clk 0:01:28.5]} 15. g4 {[%clk 0:02:21.3]}
15... Bg6 {[%clk 0:01:27.1]} 16. Nh4 {[%clk 0:02:21.3]} 16... Nce7 {[%clk
0:01:17.8]} 17. Qf3 {[%clk 0:02:03.5]} 17... c6 {[%clk 0:00:53.9]} 18. Rf2
{[%clk 0:01:54.8]} 18... b5 {[%clk 0:00:38.2]} 19. Bb3 {[%clk 0:01:43.6]} 19...
Bxd3 {[%clk 0:00:37.5]} 20. Rd1 {[%clk 0:01:38.7]} 20... e4 {[%clk 0:00:26]} 21.
Nxe4 {[%clk 0:01:36.6]} 21... Bxe4 {[%clk 0:00:26.2]} 22. Qxe4 {[%clk
0:01:37.3]} 22... Rae8 {[%clk 0:00:23.4]} 23. Qf3 {[%clk 0:01:36.3]} 23... Qc7
{[%clk 0:00:12.5]} 24. e4 {[%clk 0:01:34.6]} 24... Nf6 {[%clk 0:00:12.7]} 25. g5
{[%clk 0:01:07.7]} 25... Nd7 {[%clk 0:00:09]} 26. Bxf7+ {[%clk 0:01:01.3]} 26...
Kh8 {[%clk 0:00:09.2]} 27. g6 {[%clk 0:00:55.6]} 27... Nxg6 {[%clk 0:00:08.1]}
28. Nxg6+ {[%clk 0:00:53.1]} 28... hxg6 {[%clk 0:00:08.5]} 29. Qg4 {[%clk
0:00:53.3]} 29... Qe5 {[%clk 0:00:07.2]} 30. Rf5 {[%clk 0:00:49]} 30... Nf6
{[%clk 0:00:06.4]} 31. Qh4+ {[%clk 0:00:48.2]} 31... Nh5 {[%clk 0:00:06.5]} 32.
Rxe5 {[%clk 0:00:47.7]} 32... Rxe5 {[%clk 0:00:06.6]} 33. Bxg6 {[%clk
0:00:47.3]} 1-0

[Event "Late-Titled-Tuesday-Blitz-January-16-2024"]
[Site "Chess.com"]
[Date "2024.01.16"]
[Round "6"]
[White "DonJuan_34"]
[Black "MKlose11"]
[Result "0-1"]
[WhiteElo "2421"]
[BlackElo "2640"]
[TimeControl "180+1"]
[EndTime "15:03:23 PST"]
[Termination "MKlose11 won by resignation"]

1. d4 {[%clk 0:03:00.9]} 1... Nf6 {[%clk 0:02:57.8]} 2. c4 {[%clk 0:03:01.4]}
2... g6 {[%clk 0:02:58.7]} 3. Nc3 {[%clk 0:03:01.5]} 3... c5 {[%clk 0:02:58.6]}
4. d5 {[%clk 0:03:00.1]} 4... d6 {[%clk 0:02:58.3]} 5. Nf3 {[%clk 0:02:55.4]}
5... Bg7 {[%clk 0:02:57.5]} 6. h3 {[%clk 0:02:55.2]} 6... O-O {[%clk 0:02:58.4]}
7. Bf4 {[%clk 0:02:54.7]} 7... Na6 {[%clk 0:02:59.1]} 8. e3 {[%clk 0:02:50.2]}
8... Nc7 {[%clk 0:02:59.1]} 9. Be2 {[%clk 0:02:49.3]} 9... Rb8 {[%clk
0:02:59.6]} 10. O-O {[%clk 0:02:45.2]} 10... b6 {[%clk 0:02:57.4]} 11. Nd2
{[%clk 0:02:40.3]} 11... a6 {[%clk 0:02:57.6]} 12. a4 {[%clk 0:02:39.6]} 12...
Bd7 {[%clk 0:02:57.4]} 13. e4 {[%clk 0:02:34.2]} 13... b5 {[%clk 0:02:57.5]} 14.
axb5 {[%clk 0:02:32]} 14... axb5 {[%clk 0:02:58.4]} 15. Qc2 {[%clk 0:02:14.8]}
15... b4 {[%clk 0:02:55]} 16. Nd1 {[%clk 0:02:11.4]} 16... Ra8 {[%clk
0:02:49.7]} 17. Ne3 {[%clk 0:02:10.1]} 17... Qb8 {[%clk 0:02:38.5]} 18. e5
{[%clk 0:02:05.9]} 18... dxe5 {[%clk 0:02:25.8]} 19. Bxe5 {[%clk 0:02:05]} 19...
Nfe8 {[%clk 0:02:26.4]} 20. Bxg7 {[%clk 0:02:02.2]} 20... Kxg7 {[%clk
0:02:25.6]} 21. Nb3 {[%clk 0:02:01.6]} 21... Qb6 {[%clk 0:02:19.8]} 22. Rxa8
{[%clk 0:01:55]} 22... Nxa8 {[%clk 0:02:19.7]} 23. Qe4 {[%clk 0:01:49.8]} 23...
Qd6 {[%clk 0:02:12.6]} 24. Ra1 {[%clk 0:01:36]} 24... Nf6 {[%clk 0:02:11.7]} 25.
Qc2 {[%clk 0:01:29.6]} 25... Nb6 {[%clk 0:02:09.6]} 26. Ra5 {[%clk 0:01:25.7]}
26... Ra8 {[%clk 0:02:00.8]} 27. Rxc5 {[%clk 0:01:10.7]} 27... Ba4 {[%clk
0:02:00.6]} 28. Qd3 {[%clk 0:00:39.1]} 28... Bxb3 {[%clk 0:01:50.1]} 29. Rc6
{[%clk 0:00:39.2]} 29... Ra1+ {[%clk 0:01:46.2]} 30. Bf1 {[%clk 0:00:37.7]}
30... Bxc4 {[%clk 0:01:38.1]} 31. Nxc4 {[%clk 0:00:36.3]} 31... Qxd5 {[%clk
0:01:38.5]} 32. Qxd5 {[%clk 0:00:25.5]} 32... Nbxd5 {[%clk 0:01:39.4]} 33. Ne3
{[%clk 0:00:23.6]} 33... Nxe3 {[%clk 0:01:34.4]} 34. fxe3 {[%clk 0:00:23.7]}
34... Ne4 {[%clk 0:01:34.6]} 35. Rc2 {[%clk 0:00:20.6]} 35... Ng3 {[%clk
0:01:32.9]} 36. Rf2 {[%clk 0:00:20.8]} 36... f5 {[%clk 0:01:28.1]} 37. Rf3
{[%clk 0:00:20.9]} 37... Nxf1 {[%clk 0:01:11.2]} 38. Rxf1 {[%clk 0:00:20.7]}
38... Rxf1+ {[%clk 0:01:11.9]} 39. Kxf1 {[%clk 0:00:21.5]} 39... Kf6 {[%clk
0:01:12.2]} 40. Ke2 {[%clk 0:00:22.4]} 40... Ke5 {[%clk 0:01:12.4]} 41. Kd3
{[%clk 0:00:22.8]} 41... Kd5 {[%clk 0:01:12.9]} 42. b3 {[%clk 0:00:20.2]} 42...
h6 {[%clk 0:01:10.1]} 43. h4 {[%clk 0:00:17.3]} 43... g5 {[%clk 0:01:09.7]} 44.
hxg5 {[%clk 0:00:17.3]} 44... hxg5 {[%clk 0:01:10.6]} 45. g3 {[%clk 0:00:17]}
45... e6 {[%clk 0:01:10.9]} 46. e4+ {[%clk 0:00:14.1]} 46... fxe4+ {[%clk
0:01:07.9]} 47. Ke3 {[%clk 0:00:14.3]} 47... Ke5 {[%clk 0:01:07.2]} 48. g4
{[%clk 0:00:12.8]} 48... Kd5 {[%clk 0:01:07.6]} 49. Ke2 {[%clk 0:00:12.9]} 49...
Kd4 {[%clk 0:01:07.9]} 50. Kd2 {[%clk 0:00:13.6]} 50... e3+ {[%clk 0:01:05.6]}
51. Ke2 {[%clk 0:00:14.5]} 51... Ke4 {[%clk 0:01:05.7]} 0-1

[Event "Late-Titled-Tuesday-Blitz-January-16-2024"]
[Site "Chess.com"]
[Date "2024.01.16"]
[Round "6"]
[White "GAusal"]
[Black "PNEPaul"]
[Result "1/2-1/2"]
[WhiteElo "2269"]
[BlackElo "1915"]
[TimeControl "180+1"]
[EndTime "15:03:23 PST"]
[Termination "Game drawn by repetition"]

1. d4 {[%clk 0:01:31.5]} 1... a6 {[%clk 0:02:57.9]} 2. Nf3 {[%clk 0:01:30.7]}
2... d6 {[%clk 0:02:58.1]} 3. e4 {[%clk 0:01:30.3]} 3... g6 {[%clk 0:02:58.2]}
4. Bd3 {[%clk 0:01:30.3]} 4... Bg7 {[%clk 0:02:56.8]} 5. c3 {[%clk 0:01:30.7]}
5... Nd7 {[%clk 0:02:56]} 6. Be3 {[%clk 0:01:30.2]} 6... e5 {[%clk 0:02:55.7]}
7. Nbd2 {[%clk 0:01:30.3]} 7... h6 {[%clk 0:02:54.1]} 8. O-O {[%clk 0:01:30.2]}
8... Ne7 {[%clk 0:02:53.8]} 9. h3 {[%clk 0:01:28.4]} 9... O-O {[%clk 0:02:53.6]}
10. Nh2 {[%clk 0:01:28.4]} 10... f5 {[%clk 0:02:53]} 11. f3 {[%clk 0:01:28.5]}
11... f4 {[%clk 0:02:52.5]} 12. Bf2 {[%clk 0:01:28.4]} 12... g5 {[%clk
0:02:52.8]} 13. dxe5 {[%clk 0:01:27.7]} 13... Nxe5 {[%clk 0:02:43.4]} 14. Be2
{[%clk 0:01:27.8]} 14... Qe8 {[%clk 0:02:41.4]} 15. Ng4 {[%clk 0:01:27.7]} 15...
Nxg4 {[%clk 0:02:39.3]} 16. hxg4 {[%clk 0:01:27.6]} 16... Be6 {[%clk 0:02:31.8]}
17. Bc4 {[%clk 0:01:26.1]} 17... Bxc4 {[%clk 0:02:29]} 18. Nxc4 {[%clk
0:01:25.4]} 18... Ng6 {[%clk 0:02:27.8]} 19. Qb3 {[%clk 0:01:24.6]} 19... Qf7
{[%clk 0:02:21.6]} 20. Rfd1 {[%clk 0:01:07.1]} 20... Ne5 {[%clk 0:02:05]} 21.
Nxe5 {[%clk 0:01:04.9]} 21... Qxb3 {[%clk 0:02:04.3]} 22. axb3 {[%clk
0:01:01.9]} 22... Bxe5 {[%clk 0:02:04.1]} 23. Rd5 {[%clk 0:01:00.2]} 23... Rfd8
{[%clk 0:01:51.5]} 24. Rad1 {[%clk 0:00:57.6]} 24... Kf7 {[%clk 0:01:48.2]} 25.
b4 {[%clk 0:00:55.4]} 25... Ke6 {[%clk 0:01:43.2]} 26. R5d3 {[%clk 0:00:54.4]}
26... c6 {[%clk 0:01:36.4]} 27. Kf1 {[%clk 0:00:53.6]} 27... d5 {[%clk
0:01:36.3]} 28. exd5+ {[%clk 0:00:52.7]} 28... Rxd5 {[%clk 0:01:33.7]} 29. Rxd5
{[%clk 0:00:51.2]} 29... cxd5 {[%clk 0:01:33.7]} 30. Ke2 {[%clk 0:00:50.5]}
30... Rd8 {[%clk 0:01:30.1]} 31. Bd4 {[%clk 0:00:48.9]} 31... Bxd4 {[%clk
0:01:24.3]} 32. Rxd4 {[%clk 0:00:47.6]} 32... Ke5 {[%clk 0:01:19.4]} 33. Rd2
{[%clk 0:00:45.5]} 33... d4 {[%clk 0:01:15.5]} 34. c4 {[%clk 0:00:44.7]} 34...
b5 {[%clk 0:01:11.2]} 35. c5 {[%clk 0:00:44.2]} 35... Kd5 {[%clk 0:01:09.1]} 36.
Kd3 {[%clk 0:00:44]} 36... Re8 {[%clk 0:01:08.8]} 37. Re2 {[%clk 0:00:24.7]}
37... Re3+ {[%clk 0:01:00.9]} 38. Kd2 {[%clk 0:00:22.4]} 38... Rb3 {[%clk
0:00:57.6]} 39. Re8 {[%clk 0:00:18.8]} 39... Rxb2+ {[%clk 0:00:55.1]} 40. Kd3
{[%clk 0:00:16.6]} 40... Rb3+ {[%clk 0:00:43.4]} 41. Kd2 {[%clk 0:00:16.1]}
41... Rb2+ {[%clk 0:00:42.8]} 42. Kd3 {[%clk 0:00:15.3]} 42... Rb3+ {[%clk
0:00:43.1]} 43. Kd2 {[%clk 0:00:15.4]} 43... Rb2+ {[%clk 0:00:43.3]} 1/2-1/2

[Event "Late-Titled-Tuesday-Blitz-January-16-2024"]
[Site "Chess.com"]
[Date "2024.01.16"]
[Round "6"]
[White "Zampronha1971"]
[Black "Mr_November18"]
[Result "0-1"]
[WhiteElo "2305"]
[BlackElo "2067"]
[TimeControl "180+1"]
[EndTime "15:03:28 PST"]
[Termination "Mr_November18 won by resignation"]

1. e4 {[%clk 0:03:00.9]} 1... c5 {[%clk 0:02:59.6]} 2. Nf3 {[%clk 0:03:01.4]}
2... d6 {[%clk 0:02:59.8]} 3. d4 {[%clk 0:03:01.9]} 3... cxd4 {[%clk 0:03:00.1]}
4. Nxd4 {[%clk 0:03:02.8]} 4... Nf6 {[%clk 0:03:00.6]} 5. Nc3 {[%clk 0:03:03.3]}
5... g6 {[%clk 0:03:00.7]} 6. Be3 {[%clk 0:03:03]} 6... Bg7 {[%clk 0:03:00.7]}
7. f3 {[%clk 0:03:03.7]} 7... O-O {[%clk 0:03:00.8]} 8. Qd2 {[%clk 0:03:04.4]}
8... Nc6 {[%clk 0:03:00.7]} 9. Bc4 {[%clk 0:03:04.3]} 9... Bd7 {[%clk
0:03:00.5]} 10. O-O-O {[%clk 0:03:04.9]} 10... Rc8 {[%clk 0:03:00.6]} 11. Bb3
{[%clk 0:03:05.6]} 11... Nxd4 {[%clk 0:03:00.5]} 12. Bxd4 {[%clk 0:03:05]} 12...
b5 {[%clk 0:03:01.1]} 13. a3 {[%clk 0:02:41.6]} 13... a5 {[%clk 0:03:00.6]} 14.
h4 {[%clk 0:02:32]} 14... b4 {[%clk 0:02:59.1]} 15. axb4 {[%clk 0:02:31.7]}
15... axb4 {[%clk 0:02:59]} 16. Nd5 {[%clk 0:02:32.3]} 16... Nxd5 {[%clk
0:02:58.9]} 17. Bxg7 {[%clk 0:02:32.8]} 17... Kxg7 {[%clk 0:02:58.8]} 18. exd5
{[%clk 0:02:29.5]} 18... Qa5 {[%clk 0:02:57.2]} 19. Qd4+ {[%clk 0:02:24.2]}
19... Kg8 {[%clk 0:02:56.7]} 20. h5 {[%clk 0:02:13.9]} 20... Ba4 {[%clk
0:02:55.3]} 21. hxg6 {[%clk 0:02:09.1]} 21... fxg6 {[%clk 0:02:40.5]} 22. Bxa4
{[%clk 0:01:58.3]} 22... Qxa4 {[%clk 0:02:33.8]} 23. Qe4 {[%clk 0:01:37.4]}
23... Rc7 {[%clk 0:01:24.1]} 24. Kd2 {[%clk 0:00:55.7]} 24... Rfc8 {[%clk
0:01:17.8]} 25. Rc1 {[%clk 0:00:55.8]} 25... Qa5 {[%clk 0:01:04.2]} 26. Rhd1
{[%clk 0:00:44.6]} 26... Qc5 {[%clk 0:01:00.9]} 27. Ke2 {[%clk 0:00:37.5]} 27...
Qb5+ {[%clk 0:00:57.9]} 28. Qd3 {[%clk 0:00:35.8]} 28... Rxc2+ {[%clk 0:00:50]}
29. Rxc2 {[%clk 0:00:34.5]} 29... Rxc2+ {[%clk 0:00:49.7]} 30. Kf1 {[%clk
0:00:30.9]} 30... Qxd3+ {[%clk 0:00:47.3]} 31. Rxd3 {[%clk 0:00:31.8]} 31...
Rxb2 {[%clk 0:00:47.6]} 32. Rd4 {[%clk 0:00:27.1]} 32... b3 {[%clk 0:00:45.9]}
33. Rb4 {[%clk 0:00:27.2]} 33... Rb1+ {[%clk 0:00:44.3]} 34. Kf2 {[%clk
0:00:25.1]} 34... b2 {[%clk 0:00:44.3]} 35. Kg3 {[%clk 0:00:25.2]} 35... Kf7
{[%clk 0:00:44.4]} 36. Kg4 {[%clk 0:00:21.1]} 36... h6 {[%clk 0:00:41]} 37. g3
{[%clk 0:00:19.9]} 37... Kf6 {[%clk 0:00:39.9]} 38. f4 {[%clk 0:00:20.4]} 38...
h5+ {[%clk 0:00:37.1]} 0-1